Cogmind - Beta 10.1 @@@ ROGUE MODE // 2020.09.22 @ 20:51:47 Player: 3.14 Result: Self-destructed Performance ------------- Evolutions (9) 4500 Regions Visited (24) 4800 Robots Destroyed (288) 1440 Value Destroyed (15967) 15967 Prototype IDs (17) 340 Alien Tech Used (0) 0 Bonus (10485) 10485 TOTAL SCORE: 37532 Bonus ------- High Alert Combat Kills 3140 Follower Combat Kills 3277 Entered Garrisons 2000 Used RIF Installer 5000 Friendly Fire -2932 Cogmind --------- Core Integrity 1457/1600 Matter 300/300 Energy 405/405 System Corruption 12% Temperature Cool (0) Movement Treading (180) Ox1 Location -1/Access Parts ------- > --- POWER (2) -------- Reinforced Antimatter Reactor Light Particle Reactor > --- PROPULSION (4) --- Improved Heavy Treads > --- UTILITY (17) ----- Advanced Cooling System Large Storage Unit High-capacity Storage Unit Relay Coupler [NC] (9) Relay Coupler [Swarmer] (58) Relay Coupler [Swarmer] (47) Relay Coupler [Swarmer] (58) Relay Coupler [Grunt] (19) Relay Coupler [Grunt] (40) Relay Coupler [Sentry] (17) Relay Coupler [Demolisher] (36) Relay Coupler [Demolisher] (35) Relay Coupler [Hunter] (25) Relay Coupler [Hunter] (10) Relay Coupler [Behemoth] (7) > --- WEAPON (2) ------- Advanced Remote Datajack Vibroblade > --- INVENTORY (18) --- Medium Treads Medium Treads Biometal Heavy Treads Advanced Cooling System High-capacity Matter Pod (200) Antimissile System Relay Coupler [NC] (44) Relay Coupler [ARC] (18) Relay Coupler [Swarmer] (59) Relay Coupler [Swarmer] (45) Relay Coupler [Demolisher] (26) Relay Coupler [Specialist] (26) Relay Coupler [Hunter] (26) Compact HERF Cannon Nova Cannon Helical Railgun Gamma Bomb Array Peak State ------------ > --- POWER ------------ Reinforced Antimatter Reactor Particle Reactor > --- PROPULSION ------- Armored Heavy Treads Biometal Heavy Treads > --- UTILITY ---------- Advanced Cooling System Large Storage Unit High-capacity Storage Unit High-capacity Storage Unit Relay Coupler [NC] Relay Coupler [Swarmer] Relay Coupler [Swarmer] Relay Coupler [Swarmer] Relay Coupler [Grunt] Relay Coupler [Grunt] Relay Coupler [Duelist] Relay Coupler [Sentry] Relay Coupler [Sentry] Relay Coupler [Demolisher] Relay Coupler [Hunter] Relay Coupler [Hunter] Relay Coupler [Behemoth] > --- WEAPON ----------- Enhanced Nova Cannon Advanced Remote Datajack > --- INVENTORY -------- Light Particle Reactor Medium Treads Medium Treads Biometal Heavy Treads Advanced Cooling System High-capacity Matter Pod Antimissile System Relay Coupler [NC] Relay Coupler [NC] Relay Coupler [NC] Relay Coupler [ARC] Relay Coupler [Swarmer] Relay Coupler [Swarmer] Relay Coupler [Swarmer] Relay Coupler [Swarmer] Relay Coupler [Sentry] Relay Coupler [Demolisher] Relay Coupler [Demolisher] Relay Coupler [Specialist] Relay Coupler [Hunter] Nova Cannon Nova Cannon Helical Railgun Gamma Bomb Array Vibroblade [Rating: 136] Favorites ----------- Power Micro Fission Core Engine Improved Deuterium Engine Power Core Micro Fission Core Reactor Reinforced Antimatter Reactor Propulsion Light Treads Treads Light Treads Leg Myomer Leg Utility High-capacity Storage Unit Device Improved Cooling System Storage High-capacity Storage Unit Processor Advanced Targeting Computer Hackware Relay Coupler [Sentry] Protection Hardened Heavy Armor Plating Weapon Advanced Remote Datajack Energy Gun Gamma Rifle Energy Cannon EM Pulse Cannon Ballistic Gun Enhanced Autogun Launcher Long-range Missile Launcher Special Weapon Advanced Remote Datajack Slashing Weapon Vibroblade Build | -11 -10 -10 -9 -8 -8 -7 -7 -7 -7 -6 -6 -5 -5 -4 -4 -3 -3 -3 -3 -2 -2 -2 -2 -1 ------- Run | Scr Mat Min Mat Mat Gar Fac Gar Fac Gar Fac Gar Fac Gar Fac Gar Res Gar Res Gar Res Gar Res Gar Acc Slots Evolved 18 | . . . 2 2 . 2 . . . 2 . 2 . 2 . 2 . . . 2 . . . 2 Power 1 | . . . . . . . . . . 1 . . . . . . . . . . . . . . Propulsion 2 | . . . . 1 . . . . . . . . . . . 1 . . . . . . . . Utility 15 | . . . 2 1 . 2 . . . 1 . 2 . 2 . 1 . . . 2 . . . 2 Weapon . | . . . . . . . . . . . . . . . . . . . . . . . . . Parts Attached 367 | 6 3 3 30 16 9 25 6 17 20 2 10 2 25 17 11 40 34 19 25 4 19 4 7 13 Power 33 | 1 1 1 3 2 1 1 . . 2 1 2 . 2 1 1 2 4 2 2 . 2 . 1 1 Engine 11 | 1 1 1 3 . 1 1 . . 1 . 1 . 1 . . . . . . . . . . . Core 11 | . . . . 2 . . . . 1 1 1 . 1 . 1 . 4 . . . . . . . Reactor 11 | . . . . . . . . . . . . . . 1 . 2 . 2 2 . 2 . 1 1 Propulsion 81 | 2 . . 10 6 3 6 2 2 5 . 3 . 7 4 2 7 3 6 7 1 4 . . 1 Treads 61 | 2 . . 5 6 3 6 2 2 5 . 3 . 7 4 2 6 3 2 . . 2 . . 1 Leg 20 | . . . 5 . . . . . . . . . . . . 1 . 4 7 1 2 . . . Wheel . | . . . . . . . . . . . . . . . . . . . . . . . . . Hover . | . . . . . . . . . . . . . . . . . . . . . . . . . Flight . | . . . . . . . . . . . . . . . . . . . . . . . . . Utility 99 | 1 2 . 6 4 . 11 . 4 3 1 1 2 7 2 4 12 9 1 8 2 9 2 2 6 Device 21 | . . . 2 1 . . . 1 1 . . . 1 . . 5 2 1 2 . 3 1 1 . Storage 12 | 1 2 . 2 1 . 3 . 2 . . . . . . . . . . . . . 1 . . Processor 2 | . . . . . . 2 . . . . . . . . . . . . . . . . . . Hackware 34 | . . . . . . . . . . . . 2 . 1 3 3 4 . 6 2 6 . 1 6 Protection 30 | . . . 2 2 . 6 . 1 2 1 1 . 6 1 1 4 3 . . . . . . . Artifact . | . . . . . . . . . . . . . . . . . . . . . . . . . Weapon 154 | 2 . 2 11 4 5 7 4 11 10 . 4 . 9 10 4 19 18 10 8 1 4 2 4 5 Energy Gun 8 | . . . . 1 . 2 . . 1 . . . 1 . . . 3 . . . . . . . Energy Cannon 66 | . . . . . . . . 10 7 . 3 . 3 4 3 13 6 7 4 . 1 1 2 2 Ballistic Gun 41 | 2 . 2 10 3 3 4 3 . . . . . 4 4 . 1 3 . 1 . 1 . . . Ballistic Cannon . | . . . . . . . . . . . . . . . . . . . . . . . . . Launcher 13 | . . . 1 . 2 1 1 . 2 . 1 . 1 . 1 2 . 1 . . . . . . Special Weapon 14 | . . . . . . . . . . . . . . . . 1 3 2 3 . 1 . 2 2 Impact Weapon . | . . . . . . . . . . . . . . . . . . . . . . . . . Slashing Weapon 12 | . . . . . . . . 1 . . . . . 2 . 2 3 . . 1 1 1 . 1 Piercing Weapon . | . . . . . . . . . . . . . . . . . . . . . . . . . Special Melee Weapon . | . . . . . . . . . . . . . . . . . . . . . . . . . Unidentified Prototypes 11 | . . . 1 2 . . . . . . . . . 2 . 4 1 . . . 1 . . . Parts Lost 64 | . . 1 7 5 1 . . . 1 . 2 . 5 . 7 6 10 3 6 . 1 . . 9 Power 8 | . . 1 . 2 1 . . . . . . . 1 . . . 1 1 . . . . . 1 Propulsion 17 | . . . 3 1 . . . . . . 1 . 1 . 2 . 3 2 3 . . . . 1 Utility 25 | . . . 1 2 . . . . 1 . 1 . 2 . 3 5 3 . 2 . 1 . . 4 Weapon 14 | . . . 3 . . . . . . . . . 1 . 2 1 3 . 1 . . . . 3 Highest Loss Streak 8 | . . 1 3 3 1 . . . 1 . 2 . 4 . 7 2 8 1 6 . 1 . . 4 Average Slot Usage (%) 93 | . 97 100 92 97 100 99 92 91 95 97 98 100 97 95 93 89 86 98 91 92 90 90 90 86 Engine 4 | . 14 14 11 6 6 7 7 7 6 6 6 5 5 5 3 . . . . . . . . . Core 1 | . . . . 2 2 . . . . 6 6 5 4 2 1 2 7 5 1 . . . . . Reactor 2 | . . . . . . . . . . . . . . 2 5 5 1 2 7 8 8 8 8 8 Treads 16 | . 28 28 14 26 27 23 23 23 23 20 19 17 17 15 12 13 12 11 . . 5 8 8 8 Leg 2 | . . . 7 . . . . . . . . . . . . . . 6 17 17 4 . . . Device 5 | . . . 9 9 9 6 . 5 7 6 6 5 5 5 3 6 4 4 3 4 4 3 6 4 Storage 18 | . 25 28 22 25 27 23 23 23 23 20 20 17 17 15 15 14 14 14 14 13 13 13 13 11 Processor 3 | . . . . . . 6 15 8 7 6 6 5 5 5 5 4 . . . . . . . . Hackware 17 | . . . . . . . . . . . . 11 11 13 26 25 29 38 39 44 44 47 44 46 Protection 6 | . . . 6 9 9 15 7 7 10 17 18 17 14 18 8 3 5 4 . . . . . . Energy Cannon 4 | . . . . . . . . 12 14 13 12 11 6 5 9 6 2 5 4 3 1 . 2 3 Ballistic Gun 6 | . 28 28 21 17 17 14 14 1 . . . . 4 4 . . 1 . . . . . . . Naked Turns . | . . . . . . . . . . . . . . . . . . . . . . . . . Heaviest Build 177 | 10 48 48 81 115 113 132 132 142 146 153 159 157 157 174 175 177 159 145 143 134 150 149 144 142 Greatest Support 145 | 40 40 40 40 60 60 60 60 60 60 60 80 80 90 74 98 145 140 140 95 105 135 135 135 135 Greatest Overweight (x) 3 | 1 1 1 3 2 1 2 2 2 2 2 3 1 2 2 2 1 1 1 2 1 1 1 1 1 Average Overweight (x) 1 | . . 1 2 1 1 1 2 2 1 2 1 1 1 2 1 1 . . 1 1 1 . . . Largest Inventory Capacity 34 | 6 16 16 24 28 28 28 28 28 28 28 28 28 28 28 28 28 28 28 28 28 28 34 26 26 Average Capacity 26 | 5 11 16 18 26 28 28 28 28 28 28 28 28 28 28 28 28 28 28 28 28 28 26 26 24 Most Carried 28 | 4 12 16 20 26 28 28 28 28 28 28 28 27 28 28 28 28 28 28 28 28 28 28 26 26 Average Carried 24 | 2 7 12 14 20 27 27 27 27 27 27 27 26 27 27 25 27 24 27 27 27 27 26 25 24 Final Capacity 28 | 6 16 16 20 28 28 28 28 28 28 28 28 28 28 28 28 28 28 28 28 28 28 26 26 18 Final Carried 28 | 4 12 16 20 26 28 28 28 28 28 28 28 27 28 28 23 28 27 27 28 28 28 26 26 18 Class Distribution -------------------- 39% | Botlord-Mutant 27% | Scavenger-Mutant 24% | Hauler-Mutant 7% | Mutant Dominant Class ---------------- Mutant | -10/Materials Mutant | -10/Mines Scavenger-Mutant | -9/Materials Hauler-Mutant | -8/Materials Hauler-Mutant | -8/Garrison Scavenger-Mutant | -7/Factory Scavenger-Mutant | -7/Garrison Hauler-Mutant | -7/Factory Hauler-Mutant | -7/Garrison Hauler-Mutant | -6/Factory Hauler-Mutant | -6/Garrison Scavenger-Mutant | -5/Factory Scavenger-Mutant | -5/Garrison Scavenger-Mutant | -4/Factory Hauler-Mutant | -4/Garrison Botlord-Mutant | -3/Research Botlord-Mutant | -3/Garrison Botlord-Mutant | -3/Research Botlord-Mutant | -3/Garrison Botlord-Mutant | -2/Research Botlord-Mutant | -2/Garrison Botlord-Mutant | -2/Research Botlord-Mutant | -2/Garrison Botlord-Mutant | -1/Access Resources | -11 -10 -10 -9 -8 -8 -7 -7 -7 -7 -6 -6 -5 -5 -4 -4 -3 -3 -3 -3 -2 -2 -2 -2 -1 ----------- Run | Scr Mat Min Mat Mat Gar Fac Gar Fac Gar Fac Gar Fac Gar Fac Gar Res Gar Res Gar Res Gar Res Gar Acc Matter Collected 7045 | 268 78 119 626 583 302 518 265 197 251 20 225 . 314 188 142 602 411 287 400 . 673 . 206 370 Remotely . | . . . . . . . . . . . . . . . . . . . . . . . . . Salvage Created 14239 | 90 173 235 1312 1053 375 448 216 643 680 128 678 . 994 854 467 1403 1389 999 630 . 439 . 230 803 Parts 647 | 2 12 21 73 45 29 29 15 31 30 4 35 . 41 23 21 55 61 29 16 . 8 . 18 49 Haulers Intercepted 10 | . 1 . 3 3 . . . . . . . . . 2 . 1 . . . . . . . . Recyclers Shooed 4 | . . 1 1 . . . . 1 . . . . . . . 1 . . . . . . . . Parts Field Recycled . | . . . . . . . . . . . . . . . . . . . . . . . . . Retrieved Matter . | . . . . . . . . . . . . . . . . . . . . . . . . . Parts Self-Destructed . | . . . . . . . . . . . . . . . . . . . . . . . . . Prevented . | . . . . . . . . . . . . . . . . . . . . . . . . . Kills | -11 -10 -10 -9 -8 -8 -7 -7 -7 -7 -6 -6 -5 -5 -4 -4 -3 -3 -3 -3 -2 -2 -2 -2 -1 ------- Run | Scr Mat Min Mat Mat Gar Fac Gar Fac Gar Fac Gar Fac Gar Fac Gar Res Gar Res Gar Res Gar Res Gar Acc Combat Hostiles Destroyed 246 | . 5 11 26 20 13 10 10 9 15 2 18 . 14 8 10 18 17 13 8 . 2 . 4 13 Melee 7 | . . . . . . . . . . . . . . . . 3 2 . . . 1 . 1 . Guns 81 | . 5 11 22 20 6 6 3 . 1 . . . 3 . . . 4 . . . . . . . Cannons 74 | . . . . . . . . 6 7 1 5 . 5 7 5 9 4 4 5 . . . 3 13 AOE 51 | . . . 4 . 7 3 7 3 6 . 8 . . 1 4 3 . 5 . . . . . . Classes Destroyed 16 | 1 3 1 4 1 . 2 . . . . 1 . . 2 . . . 1 . . . . . . Worker 10 | . . . 2 1 . 1 . 4 . . . . . . . 2 . . . . . . . . Tunneler 1 | . . . . . . . . . . . . . . 1 . . . . . . . . . . Hauler 10 | . 1 . 3 3 . . . . . . . . . 2 . 1 . . . . . . . . Recycler 4 | 1 . . 2 . . . . 1 . . . . . . . . . . . . . . . . Carrier 1 | . . . . . . . . . . . . . . 1 . . . . . . . . . . Operator 3 | . . . 1 . . . . . . . . . . . . 2 . . . . . . . . Watcher 8 | . . . 1 1 . . . 2 . . . . . . . 2 1 . . . . . 1 . Swarmer 67 | . 3 9 7 3 5 3 8 . . . 7 . 1 . 5 6 1 1 . . . . 3 5 Grunt 107 | . 2 . 14 14 6 . 2 4 12 2 5 . 2 4 4 5 11 9 5 . 4 . . 2 Brawler 3 | . . . . 1 . . . 1 1 . . . . . . . . . . . . . . . Duelist 5 | . . . 1 . . . . 2 . . 1 . 1 . . . . . . . . . . . Protector 1 | . . . . . . . . . . . . . . . . . . 1 . . . . . . Sentry 29 | . . 2 4 2 2 4 . 1 1 . 2 . 6 2 . . . 1 . . 1 . . 1 Hunter 16 | . . . . . . 1 . . . . 2 . 3 2 . 2 4 . 2 . . . . . Programmer 19 | . . . . . . 2 . 1 1 . . . . . . 5 2 1 1 . . . . 6 Behemoth 4 | . . . . . . . . . . . 1 . 1 . 1 . . . . . . . 1 . Best Kill Streak 13 | 1 3 3 7 8 4 4 8 5 9 2 13 . 5 3 4 6 7 5 3 . 1 . 2 4 Combat Bots Only 13 | . 3 3 7 7 4 3 8 5 9 2 13 . 5 3 4 6 7 5 3 . 1 . 2 4 Max Kills in Single Turn 5 | 1 1 2 4 1 3 3 4 5 3 1 4 . 1 1 4 2 1 3 1 . 1 . 1 1 Gunslinging 1 | . . 1 . . . . . . . . . . . . . . . . . . . . . . Exploded 4 | . . . 3 . 3 2 4 3 3 . 4 . . 1 4 2 . 3 . . . . . . Melee 1 | . . . . . . . . . . . . . . . . 1 1 . . . 1 . 1 . Uniques/NPCs Destroyed . | . . . . . . . . . . . . . . . . . . . . . . . . . Combat | -11 -10 -10 -9 -8 -8 -7 -7 -7 -7 -6 -6 -5 -5 -4 -4 -3 -3 -3 -3 -2 -2 -2 -2 -1 -------- Run | Scr Mat Min Mat Mat Gar Fac Gar Fac Gar Fac Gar Fac Gar Fac Gar Res Gar Res Gar Res Gar Res Gar Acc Damage Taken 23861 | . 170 383 1689 1213 393 893 232 452 777 86 930 . 2070 1139 1197 3288 3853 1497 880 . 231 75 598 1815 Core 2227 | . 34 123 281 94 23 116 18 19 54 . 91 . 116 81 71 148 454 107 70 . 79 22 83 143 Absorbed by Shields 466 | . . . . . . . 20 . . . 70 . 75 . 19 . 70 . 130 . 75 . 7 . Reduced by Siege Mode 59 | . . . . . . . . . . . . . . . 59 . . . . . . . . . Core Remaining (%) 70 | 100 . 37 29 . 78 . . . 70 . 89 . 88 . 86 . . . 40 . . . 87 . Volleys Fired 852 | 2 14 24 102 75 27 39 15 24 30 4 35 . 50 38 23 78 49 28 37 . 62 1 22 73 Largest 2 | 2 2 2 2 2 2 2 2 2 2 2 2 . 2 2 2 2 2 2 2 . 1 1 1 1 Hottest 223 | 40 40 40 46 50 50 100 48 160 160 126 153 . 150 180 163 188 208 176 223 . 88 50 120 120 Shots Fired 1381 | 4 28 48 201 150 47 74 26 45 47 8 61 . 100 73 46 113 69 40 43 . 62 1 22 73 Gun 654 | 4 28 48 199 150 40 70 22 . 6 . . . 33 12 . . 35 . . . 7 . . . Cannon 581 | . . . . . . . . 45 37 8 52 . 67 61 45 91 29 34 40 . 13 . 13 46 Launcher 39 | . . . 2 . 7 4 4 . 4 . 9 . . . 1 4 . 4 . . . . . . Special 107 | . . . . . . . . . . . . . . . . 18 5 2 3 . 42 1 9 27 Kinetic 602 | 4 28 48 199 150 40 62 22 . . . . . 22 12 . . 8 . . . 7 . . . Thermal 282 | . . . . . . . . 16 4 . 1 . 26 61 45 56 6 6 4 . . . 12 45 Explosive 31 | . . . 2 . 7 4 4 . 4 . 9 . . . 1 . . . . . . . . . Electromagnetic 359 | . . . . . . 8 . 29 39 8 51 . 52 . . 39 50 32 36 . 13 . 1 1 Robot Hit Streak 40 | 2 10 11 24 30 9 17 7 17 14 16 40 . 31 15 23 31 10 13 7 . 25 13 14 9 Robot Miss Streak 6 | 1 1 2 2 3 6 3 2 1 1 . 2 . 1 1 5 2 2 3 2 . 2 . 1 4 Penetration Max . | . . . . . . . . . . . . . . . . . . . . . . . . . Secondary Targets 9 | . . 3 . 3 1 . 1 . . . . . 1 . . . . . . . . . . . Max Gunslinging Chain 1 | . . 1 . 1 1 . 1 . . . . . 1 . . . . . . . . . . . Shots Hit Robots 1065 | 2 22 30 155 117 23 55 16 31 34 7 50 . 87 56 34 93 64 30 26 . 66 2 18 47 Core Hits 507 | 1 10 13 64 48 24 24 18 23 31 3 27 . 33 31 16 44 29 30 9 . 6 . 6 17 Critical Hits 17 | . . . 1 1 . 3 1 . . . . . 4 2 . 2 . 1 1 . . . 1 . Critical Kills 4 | . . . 1 . . . 1 . . . . . . 1 . 1 . . . . . . . . Critical Parts Destroyed 10 | . . . . 1 . 2 . . . . . . 4 . . 1 . 1 1 . . . . . Melee Attacks 49 | . . . . . . . . 3 . . . . . . . 4 16 . . 2 17 1 5 1 Impact . | . . . . . . . . . . . . . . . . . . . . . . . . . Slashing 49 | . . . . . . . . 3 . . . . . . . 4 16 . . 2 17 1 5 1 Piercing . | . . . . . . . . . . . . . . . . . . . . . . . . . Sneak Attacks 22 | . . . . . . . . . . . . . . . . 1 4 . . . 12 1 4 . Combat Hostiles 5 | . . . . . . . . . . . . . . . . . 2 . . . 1 . 2 . Follow-up Attacks . | . . . . . . . . . . . . . . . . . . . . . . . . . Damage Inflicted 35009 | 15 271 310 1946 2005 1036 1212 557 1653 1752 185 2519 . 2202 2478 1606 4188 2774 2444 1003 . 2244 114 982 1513 Guns 7674 | 15 240 304 1643 1971 364 914 194 . 138 . . . 676 245 . . 813 . . . 157 . . . Cannons 15186 | . . . . . . . . 847 662 185 1047 . 1298 1460 1239 3198 988 1076 1003 . 276 . 435 1472 Explosions 7989 | . . . 268 . 666 266 363 793 952 . 1472 . 228 767 367 518 . 1329 . . . . . . Melee 3706 | . . . . . . . . . . . . . . . . 264 973 . . . 1811 111 547 . Ramming 454 | . 31 6 35 34 6 32 . 13 . . . . . 6 . 208 . 39 . . . 3 . 41 Kinetic 6478 | 15 240 304 1643 1971 364 803 194 . . . . . 418 245 . . 124 . . . 157 . . . Thermal 9043 | . . . . . . . . 367 285 . 269 . 772 1460 1239 2211 239 194 146 . . . 435 1426 Explosive 6029 | . . . 268 . 666 266 363 623 731 . 1239 . . 595 367 . . 911 . . . . . . Electromagnetic 9299 | . . . . . . 111 . 650 736 185 1011 . 1012 172 . 1505 1438 1300 857 . 276 . . 46 Impact . | . . . . . . . . . . . . . . . . . . . . . . . . . Slashing 3706 | . . . . . . . . . . . . . . . . 264 973 . . . 1811 111 547 . Piercing . | . . . . . . . . . . . . . . . . . . . . . . . . . Highest Corruption 33 | . . . . . . . . . . . . . . 1 1 21 27 30 33 . . . . 12 Average Corruption 19 | . . . . . . . . . . . . . . 1 1 18 26 29 32 . . . . 4 Corruption Purged 3 | . . . . . . . . . . . . . . . . 3 . . . . . . . . Effects 324 | . . . . . . . . . . . . . . . 2 95 83 53 73 . . . . 18 Message Errors 45 | . . . . . . . . . . . . . . . 1 17 9 7 9 . . . . 2 Matter Fused 34 | . . . . . . . . . . . . . . . . 5 11 10 7 . . . . 1 Heat Flow Errors 27 | . . . . . . . . . . . . . . . . 6 5 5 7 . . . . 4 Energy Discharges 30 | . . . . . . . . . . . . . . . 1 11 5 2 7 . . . . 4 Parts Rejected 3 | . . . . . . . . . . . . . . . . 2 . 1 . . . . . . Data Loss (minor) 35 | . . . . . . . . . . . . . . . . 14 5 5 9 . . . . 2 Data Loss (major) 7 | . . . . . . . . . . . . . . . . 5 . . 2 . . . . . Misfires 5 | . . . . . . . . . . . . . . . . . 2 1 2 . . . . . Alerts 5 | . . . . . . . . . . . . . . . . . 1 . 4 . . . . . Misdirections 57 | . . . . . . . . . . . . . . . . 14 20 10 13 . . . . . Targeting Errors 66 | . . . . . . . . . . . . . . . . 17 22 9 13 . . . . 5 Weapon Failures 10 | . . . . . . . . . . . . . . . . 4 3 3 . . . . . . Overload Shots 1 | . . . . . . . . . . . . . . . 1 . . . . . . . . . Overflow Damage 1819 | . . . 36 . 72 11 2 117 48 . 117 . 38 15 3 300 360 87 24 . 389 71 60 69 Projectiles 418 | . . . . . . . . 26 25 . . . 38 7 3 224 18 . 24 . . . . 53 Explosions 439 | . . . 36 . 72 11 2 91 23 . 117 . . 8 . 1 . 78 . . . . . . Melee 962 | . . . . . . . . . . . . . . . . 75 342 9 . . 389 71 60 16 Knockbacks . | . . . . . . . . . . . . . . . . . . . . . . . . . Impact . | . . . . . . . . . . . . . . . . . . . . . . . . . Kinetic . | . . . . . . . . . . . . . . . . . . . . . . . . . Secondary . | . . . . . . . . . . . . . . . . . . . . . . . . . Self-Inflicted Damage 163 | . . . . . . . 19 19 57 . . . . . . 68 . . . . . . . . Shots 6 | . . . . . . . 1 1 3 . . . . . . 1 . . . . . . . . Rammed 26 | . 3 1 4 3 1 1 . 2 . . . . . 1 . 7 . 1 . . . 1 . 1 Targets Rammed 29 | . 3 1 4 4 1 1 . 2 . . . . . 1 . 8 . 2 . . . 1 . 1 Kicked 1 | . . . . . . . . . . . . . . . . . . 1 . . . . . . Crushed 2 | . . . . 1 . . . . . . . . . . . 1 . . . . . . . . Highest Temperature 423 | . 9 9 9 . . 1 38 81 63 8 96 . 172 331 42 237 270 244 423 . . . 1 236 Average Temperature 61 | . 8 8 4 . . 1 14 23 16 6 27 . 44 178 20 68 66 50 88 . . . 1 74 Received Heat Transfer 4437 | . 78 45 582 594 90 150 30 120 381 36 256 . 456 129 120 291 486 339 55 . 31 9 78 81 Effects 3 | . . . . . . . . . . . . . . 1 . . . . 2 . . . . . Shutdowns 2 | . . . . . . . . . . . . . . 1 . . . . 1 . . . . . Matter Decay 1 | . . . . . . . . . . . . . . . . . . . 1 . . . . . Siege Activations 1 | . . . . . . . . . . . . . . . 1 . . . . . . . . . Total Turns 21 | . . . . . . . . . . . . . . . 21 . . . . . . . . . Longest Duration 21 | . . . . . . . . . . . . . . . 21 . . . . . . . . . Robots Corrupted 35 | . . . . . . 1 . . 1 1 5 . 6 1 . 5 7 4 3 . 1 . . . Combat Hostiles 32 | . . . . . . 1 . . 1 1 5 . 6 . . 3 7 4 3 . 1 . . . Parts Fried 82 | . . . . . . 1 . 8 5 1 8 . 12 . . 16 10 12 7 . 2 . . . Impact Corruptions 3 | . . . . . . . . . . . . . . . . 1 . 1 . . . . . 1 Robots Melted 1 | . . . . . . . . . . . . . . . 1 . . . . . . . . . Combat Hostiles 1 | . . . . . . . . . . . . . . . 1 . . . . . . . . . Parts Melted 34 | . . . . . . . . 3 . . . . 4 6 1 13 . . . . . . . 7 Heat Transferred 9015 | . . . . . . . . 500 350 . 200 . 992 1862 1258 1952 149 148 87 . . . 370 1147 Parts Sabotaged . | . . . . . . . . . . . . . . . . . . . . . . . . . Parts Stolen . | . . . . . . . . . . . . . . . . . . . . . . . . . Parts Stripped . | . . . . . . . . . . . . . . . . . . . . . . . . . Power Chain Reactions 10 | . . . . . . . . 1 2 . 3 . 2 . . 2 . . . . . . . . Missiles Intercepted . | . . . . . . . . . . . . . . . . . . . . . . . . . Alert | -11 -10 -10 -9 -8 -8 -7 -7 -7 -7 -6 -6 -5 -5 -4 -4 -3 -3 -3 -3 -2 -2 -2 -2 -1 ------- Run | Scr Mat Min Mat Mat Gar Fac Gar Fac Gar Fac Gar Fac Gar Fac Gar Res Gar Res Gar Res Gar Res Gar Acc Peak Influence 1551 | 5 80 170 452 470 674 544 526 869 1073 647 907 476 685 841 683 744 1017 940 1079 662 1551 900 1104 821 Initial 872 | . 3 30 66 190 305 353 261 275 608 562 438 476 333 359 448 384 554 560 562 606 496 872 675 662 Average 581 | 1 41 53 305 294 536 400 431 434 924 585 722 476 535 636 575 447 786 700 873 623 1117 872 929 468 Maximum Alert Level 4 | . . . 2 2 2 2 2 3 3 2 3 2 2 3 2 3 3 3 3 2 4 3 4 3 Low Security (%) 10 | 100 100 100 11 11 . . . . . . . . . . . . . . . . . . . 37 Level 1 22 | . . . 78 67 4 72 19 60 . . . . 16 21 . 45 . . . . . . . . Level 2 35 | . . . 10 20 95 27 80 27 11 100 37 100 83 27 100 49 37 46 15 100 11 . 17 38 Level 3 26 | . . . . . . . . 11 88 . 62 . . 50 . 4 62 53 84 . 35 100 57 23 Level 4 5 | . . . . . . . . . . . . . . . . . . . . . 52 . 24 . Level 5 . | . . . . . . . . . . . . . . . . . . . . . . . . . High Security . | . . . . . . . . . . . . . . . . . . . . . . . . . Max Security . | . . . . . . . . . . . . . . . . . . . . . . . . . Squads Dispatched 26 | . . . 1 4 . 2 . 3 . . . . . 1 . 6 . 3 . . . 3 . 3 Investigation 1 | . . . . . . . . . . . . . . . . . . . . . . . . 1 Extermination 8 | . . . . . . 2 . 1 . . . . . . . 3 . . . . . 1 . 1 Reinforcement 9 | . . . 1 1 . . . 1 . . . . . 1 . 2 . 1 . . . 1 . 1 Assault 3 | . . . . . . . . . . . . . . . . 1 . 2 . . . . . . Garrison 5 | . . . . 3 . . . 1 . . . . . . . . . . . . . 1 . . Intercept . | . . . . . . . . . . . . . . . . . . . . . . . . . Construction Impeded 1 | . . . . . . . . . . . . . . . . . . . . . . . . 1 Haulers Reinforced 2 | . . . . . . . . . . . . . . 1 . 1 . . . . . . . . Stealth | -11 -10 -10 -9 -8 -8 -7 -7 -7 -7 -6 -6 -5 -5 -4 -4 -3 -3 -3 -3 -2 -2 -2 -2 -1 --------- Run | Scr Mat Min Mat Mat Gar Fac Gar Fac Gar Fac Gar Fac Gar Fac Gar Res Gar Res Gar Res Gar Res Gar Acc Distress Signals 11 | . . . 3 4 . 1 . 2 . . . . . 1 . . . . . . . . . . Communications Jammed 122 | . . . . . . . . . . . . . . 9 . 24 . 15 . 1 . 45 . 28 Distress Signals 120 | . . . . . . . . . . . . . . 8 . 24 . 15 . . . 45 . 28 Times Spotted 455 | . 9 11 38 28 18 11 8 21 19 5 19 . 22 9 9 61 22 30 18 . 26 10 20 41 Peak Tracking Total 8 | . 5 3 6 4 6 4 4 4 8 3 6 . 6 3 6 7 6 8 6 . 3 8 6 6 Tactical Retreats 27 | . . . 1 3 6 . . 1 3 . 2 . 8 . . 1 2 . . . . . . . Traps | -11 -10 -10 -9 -8 -8 -7 -7 -7 -7 -6 -6 -5 -5 -4 -4 -3 -3 -3 -3 -2 -2 -2 -2 -1 ------- Run | Scr Mat Min Mat Mat Gar Fac Gar Fac Gar Fac Gar Fac Gar Fac Gar Res Gar Res Gar Res Gar Res Gar Acc Traps Triggered 63 | . . . . . . . 3 . 7 . 4 . 7 1 3 6 7 . 11 . 10 . 3 1 Indirectly 2 | . . . . . . . . . . . . . . . . 2 . . . . . . . . Trap Hack Attempts . | . . . . . . . . . . . . . . . . . . . . . . . . . Triggered . | . . . . . . . . . . . . . . . . . . . . . . . . . Disarmed . | . . . . . . . . . . . . . . . . . . . . . . . . . Reprogrammed . | . . . . . . . . . . . . . . . . . . . . . . . . . Reused . | . . . . . . . . . . . . . . . . . . . . . . . . . Traps Extracted . | . . . . . . . . . . . . . . . . . . . . . . . . . Installed . | . . . . . . . . . . . . . . . . . . . . . . . . . Triggered . | . . . . . . . . . . . . . . . . . . . . . . . . . Machines | -11 -10 -10 -9 -8 -8 -7 -7 -7 -7 -6 -6 -5 -5 -4 -4 -3 -3 -3 -3 -2 -2 -2 -2 -1 ---------- Run | Scr Mat Min Mat Mat Gar Fac Gar Fac Gar Fac Gar Fac Gar Fac Gar Res Gar Res Gar Res Gar Res Gar Acc Machines Disabled 74 | . . . 2 . 1 1 1 36 2 . . . 1 12 2 . 2 4 4 1 4 . 1 . Max in Single Turn 16 | . . . 1 . 1 1 1 16 1 . . . 1 6 1 . 1 2 1 . 1 . 1 . Garrison Access 1 | . . . . . . . . . . . . . . . . . . . . . . . . 1 Garrison Relay 14 | . . . . . 1 . 1 . 1 . . . . . 1 . 2 . 3 . 4 . 1 . Machines Sabotaged . | . . . . . . . . . . . . . . . . . . . . . . . . . Garrisons Compromised . | . . . . . . . . . . . . . . . . . . . . . . . . . Overloaded Fab Kills . | . . . . . . . . . . . . . . . . . . . . . . . . . Fab Network Shutdowns . | . . . . . . . . . . . . . . . . . . . . . . . . . Hacking | -11 -10 -10 -9 -8 -8 -7 -7 -7 -7 -6 -6 -5 -5 -4 -4 -3 -3 -3 -3 -2 -2 -2 -2 -1 --------- Run | Scr Mat Min Mat Mat Gar Fac Gar Fac Gar Fac Gar Fac Gar Fac Gar Res Gar Res Gar Res Gar Res Gar Acc Machines Accessed 23 | . 3 . 1 1 . 3 . 3 . 1 . 1 . 1 . 3 . 2 . 1 . 1 . 2 Terminals 8 | . 3 . . . . . . 1 . . . . . . . 2 . 1 . . . . . 1 Fabricators 2 | . . . . . . 1 . 1 . . . . . . . . . . . . . . . . Repair Stations 2 | . . . 1 . . 1 . . . . . . . . . . . . . . . . . . Recycling Units . | . . . . . . . . . . . . . . . . . . . . . . . . . Scanalyzers . | . . . . . . . . . . . . . . . . . . . . . . . . . Garrison Access 11 | . . . . 1 . 1 . 1 . 1 . 1 . 1 . 1 . 1 . 1 . 1 . 1 Total Hacks 42 | . 7 . 3 1 . 7 . 7 . 1 . 1 . 1 . 4 . 3 . 1 . 1 . 5 Successful 25 | . 2 . 2 1 . 5 . 5 . 1 . 1 . 1 . 1 . 1 . 1 . 1 . 3 Failed 17 | . 5 . 1 . . 2 . 2 . . . . . . . 3 . 2 . . . . . 2 Catastrophic 1 | . . . . . . . . . . . . . . . . . . . . . . . . 1 Database Lockouts . | . . . . . . . . . . . . . . . . . . . . . . . . . Manual 7 | . 4 . . . . . . . . . . . . . . 2 . . . . . . . 1 Terminals 17 | . 7 . . . . . . 3 . . . . . . . 3 . 2 . . . . . 2 Fabricators 7 | . . . . . . 4 . 3 . . . . . . . . . . . . . . . . Repair Stations 5 | . . . 3 . . 2 . . . . . . . . . . . . . . . . . . Recycling Units . | . . . . . . . . . . . . . . . . . . . . . . . . . Scanalyzers . | . . . . . . . . . . . . . . . . . . . . . . . . . Garrison Access 13 | . . . . 1 . 1 . 1 . 1 . 1 . 1 . 1 . 1 . 1 . 1 . 3 Terminal Hacks 4 | . 2 . . . . . . 1 . . . . . . . . . . . . . . . 1 Part Schematic 1 | . 1 . . . . . . . . . . . . . . . . . . . . . . . Prototype ID Bank 1 | . 1 . . . . . . . . . . . . . . . . . . . . . . . Branch Access Points 1 | . . . . . . . . . . . . . . . . . . . . . . . . 1 Locate Traps 1 | . . . . . . . . 1 . . . . . . . . . . . . . . . . Fabricator Hacks 6 | . . . . . . 3 . 3 . . . . . . . . . . . . . . . . Load Schematic 2 | . . . . . . 1 . 1 . . . . . . . . . . . . . . . . Build 4 | . . . . . . 2 . 2 . . . . . . . . . . . . . . . . Repair Station Hacks 3 | . . . 2 . . 1 . . . . . . . . . . . . . . . . . . Scan Component 2 | . . . 1 . . 1 . . . . . . . . . . . . . . . . . . Repair 1 | . . . 1 . . . . . . . . . . . . . . . . . . . . . Recycling Unit Hacks . | . . . . . . . . . . . . . . . . . . . . . . . . . Scanalyzer . | . . . . . . . . . . . . . . . . . . . . . . . . . Garrison Access Hacks 12 | . . . . 1 . 1 . 1 . 1 . 1 . 1 . 1 . 1 . 1 . 1 . 2 Unlock Access 10 | . . . . 1 . 1 . 1 . 1 . 1 . 1 . 1 . 1 . 1 . 1 . . Seal Access 1 | . . . . . . . . . . . . . . . . . . . . . . . . 1 Coupler Status 1 | . . . . . . . . . . . . . . . . . . . . . . . . 1 Unauthorized Hacks . | . . . . . . . . . . . . . . . . . . . . . . . . . Terminals . | . . . . . . . . . . . . . . . . . . . . . . . . . Fabricators . | . . . . . . . . . . . . . . . . . . . . . . . . . Repair Stations . | . . . . . . . . . . . . . . . . . . . . . . . . . Recycling Units . | . . . . . . . . . . . . . . . . . . . . . . . . . Scanalyzers . | . . . . . . . . . . . . . . . . . . . . . . . . . Garrison Access . | . . . . . . . . . . . . . . . . . . . . . . . . . Data Cores Recovered 1 | . . . . . . . . . . . . . . . . 1 . . . . . . . . Used . | . . . . . . . . . . . . . . . . . . . . . . . . . Hacking Detections 15 | . 3 . 1 . . 1 . 3 . . . . . . . 3 . 1 . 1 . . . 2 Full Trace Events 1 | . . . . . . . . . . . . . . . . . . . . . . . . 1 Feedback Events . | . . . . . . . . . . . . . . . . . . . . . . . . . Feedback Blocked . | . . . . . . . . . . . . . . . . . . . . . . . . . Robot Schematics Acquired . | . . . . . . . . . . . . . . . . . . . . . . . . . Robots Built . | . . . . . . . . . . . . . . . . . . . . . . . . . Matter . | . . . . . . . . . . . . . . . . . . . . . . . . . Time . | . . . . . . . . . . . . . . . . . . . . . . . . . Total Robot Build Rating . | . . . . . . . . . . . . . . . . . . . . . . . . . Part Schematics Acquired 1 | . 1 . . . . . . . . . . . . . . . . . . . . . . . Parts Built 4 | . . . . . . 2 . 2 . . . . . . . . . . . . . . . . Matter 408 | . . . . . . 204 . 204 . . . . . . . . . . . . . . . . Time 204 | . . . . . . 102 . 102 . . . . . . . . . . . . . . . . Total Part Build Rating 4 | . . . . . . 2 . 2 . . . . . . . . . . . . . . . . Parts Repaired 1 | . . . 1 . . . . . . . . . . . . . . . . . . . . . Time 26 | . . . 26 . . . . . . . . . . . . . . . . . . . . . Parts Recycled . | . . . . . . . . . . . . . . . . . . . . . . . . . Recycled Matter . | . . . . . . . . . . . . . . . . . . . . . . . . . Retrieved Matter . | . . . . . . . . . . . . . . . . . . . . . . . . . Retrieved Components . | . . . . . . . . . . . . . . . . . . . . . . . . . Parts Scanalyzed . | . . . . . . . . . . . . . . . . . . . . . . . . . Part Schematics Acquired . | . . . . . . . . . . . . . . . . . . . . . . . . . Parts Damaged . | . . . . . . . . . . . . . . . . . . . . . . . . . Bothacking | -11 -10 -10 -9 -8 -8 -7 -7 -7 -7 -6 -6 -5 -5 -4 -4 -3 -3 -3 -3 -2 -2 -2 -2 -1 ------------ Run | Scr Mat Min Mat Mat Gar Fac Gar Fac Gar Fac Gar Fac Gar Fac Gar Res Gar Res Gar Res Gar Res Gar Acc Used RIF Installer 10 | . . . . . 1 . 1 . 1 . 1 . 1 . 1 . 1 . 1 . 1 . 1 . Coupler Efficiency 1 | . . . . . . . . . . . . . . . . . . . . . . . 1 . Hotswap 1 | . . . . . . . . . 1 . . . . . . . . . . . . . . . Signal Jammer 1 | . . . . . . . . . . . 1 . . . . . . . . . . . . . Patrol Navigation 1 | . . . . . . . . . . . . . 1 . . . . . . . . . . . Structural Interface 1 | . . . . . . . . . . . . . . . . . 1 . . . . . . . Program Shield 1 | . . . . . . . 1 . . . . . . . . . . . . . . . . . Autooverride 3 | . . . . . . . . . . . . . . . 1 . . . 1 . 1 . . . Robots Hacked 102 | . . . . . . . . . . . . . . . . 17 6 3 4 . 24 1 13 34 Non-combat 11 | . . . . . . . . . . . . . . . . 4 . 1 . . . 1 . 5 Combat 91 | . . . . . . . . . . . . . . . . 13 6 2 4 . 24 . 13 29 Autooverrided 53 | . . . . . . . . . . . . . . . . 5 3 1 4 . 12 . 8 20 Robot Hacks Applied 59 | . . . . . . . . . . . . . . . . 13 3 2 2 . 13 1 5 20 drop_inventory 5 | . . . . . . . . . . . . . . . . 3 . 1 . . . 1 . . ignore_parts 1 | . . . . . . . . . . . . . . . . 1 . . . . . . . . purge_threat 4 | . . . . . . . . . . . . . . . . . . . . . . . . 4 block_reporting 1 | . . . . . . . . . . . . . . . . . . . . . . . . 1 map_route 3 | . . . . . . . . . . . . . . . . . . . . . . . . 3 find_garrison 2 | . . . . . . . . . . . . . . . . 1 . 1 . . . . . . amplify_resonance 2 | . . . . . . . . . . . . . . . . . . . . . . . . 2 overwrite_iff 4 | . . . . . . . . . . . . . . . . 1 . . . . 1 . 1 1 formatsys_high 37 | . . . . . . . . . . . . . . . . 7 3 . 2 . 12 . 4 9 Relay Couplers Released 58 | . . . . . 5 . 3 . 5 . . . . . 4 . 6 . 11 . 19 . 5 . Machine Destruction 58 | . . . . . 5 . 3 . 5 . . . . . 4 . 6 . 11 . 19 . 5 . Attached 34 | . . . . . . . . . . . . 2 . 1 3 3 4 . 6 2 6 . 1 6 Robots Rewired 15 | . . . . . . . . . 6 . . . . . . . . . . . 9 . . . Allies Hacked 2 | . . . . . . . . . . . . . . . . . . . . . . . . 2 Hacks Repelled . | . . . . . . . . . . . . . . . . . . . . . . . . . Allies | -11 -10 -10 -9 -8 -8 -7 -7 -7 -7 -6 -6 -5 -5 -4 -4 -3 -3 -3 -3 -2 -2 -2 -2 -1 -------- Run | Scr Mat Min Mat Mat Gar Fac Gar Fac Gar Fac Gar Fac Gar Fac Gar Res Gar Res Gar Res Gar Res Gar Acc Total Allies 105 | . . . . . . . . . 6 . . . . . . 13 6 1 4 . 33 . 13 29 Largest Group 16 | . . . . . . . . . 6 3 . . . . . 5 3 2 2 1 16 13 8 6 Highest-Rated Group 890 | . . . . . . . . . 102 60 . . . . . 240 94 94 162 115 890 716 292 236 Highest-Rated Ally 147 | . . . . . . . . . 20 20 . . . . . 58 64 64 115 115 147 64 147 69 Total Orders . | . . . . . . . . . . . . . . . . . . . . . . . . . Ally Attacks 554 | . . . . . . . . . 6 9 . . . . . 90 19 12 41 6 176 22 88 85 Total Damage 15030 | . . . . . . . . . 48 155 . . . . . 2381 443 374 1412 142 5299 839 1883 2054 Kills 90 | . . . . . . . . . 1 1 . . . . . 21 1 3 8 1 26 6 13 9 Allies Corrupted 2 | . . . . . . . . . . . . . . . . . . 1 . . . . . 1 Allies Melted . | . . . . . . . . . . . . . . . . . . . . . . . . . Intel | -11 -10 -10 -9 -8 -8 -7 -7 -7 -7 -6 -6 -5 -5 -4 -4 -3 -3 -3 -3 -2 -2 -2 -2 -1 ------- Run | Scr Mat Min Mat Mat Gar Fac Gar Fac Gar Fac Gar Fac Gar Fac Gar Res Gar Res Gar Res Gar Res Gar Acc Robot Analysis Total . | . . . . . . . . . . . . . . . . . . . . . . . . . Derelict Logs Recovered . | . . . . . . . . . . . . . . . . . . . . . . . . . Drone Launches . | . . . . . . . . . . . . . . . . . . . . . . . . . Drone Recoveries . | . . . . . . . . . . . . . . . . . . . . . . . . . Exploration | -11 -10 -10 -9 -8 -8 -7 -7 -7 -7 -6 -6 -5 -5 -4 -4 -3 -3 -3 -3 -2 -2 -2 -2 -1 ------------- Run | Scr Mat Min Mat Mat Gar Fac Gar Fac Gar Fac Gar Fac Gar Fac Gar Res Gar Res Gar Res Gar Res Gar Acc Turns Passed 16927 | 77 464 671 1153 644 703 995 698 942 1192 82 412 63 983 427 437 1569 795 553 885 116 1406 277 466 917 Spaces Moved 7455 | 41 241 275 379 217 342 443 322 400 488 33 153 33 398 137 168 738 358 269 437 69 695 159 229 431 Core 8 | 8 . . . . . . . . . . . . . . . . . . . . . . . . Treads 6569 | 33 241 275 290 217 342 443 322 400 488 33 153 33 398 137 168 738 358 182 . . 499 159 229 431 Legs 878 | . . . 89 . . . . . . . . . . . . . . 87 437 69 196 . . . Wheels . | . . . . . . . . . . . . . . . . . . . . . . . . . Hover . | . . . . . . . . . . . . . . . . . . . . . . . . . Flight . | . . . . . . . . . . . . . . . . . . . . . . . . . Fastest Speed 50 | 50 160 180 180 180 180 180 200 200 180 200 180 180 180 200 180 165 145 145 150 150 150 157 157 165 Average Speed 178 | 144 165 180 198 180 180 181 200 200 199 200 189 180 190 200 191 170 152 161 151 150 169 162 168 178 Slowest Speed 220 | 160 180 180 210 200 180 200 200 200 200 200 220 180 200 200 200 180 165 175 180 150 177 177 177 185 Overloaded Moves . | . . . . . . . . . . . . . . . . . . . . . . . . . Propulsion Burnouts . | . . . . . . . . . . . . . . . . . . . . . . . . . Robots Hopped . | . . . . . . . . . . . . . . . . . . . . . . . . . Cave-ins Triggered . | . . . . . . . . . . . . . . . . . . . . . . . . . Exploration Rate (%) 33 | 4 38 70 30 25 44 12 40 19 56 2 37 2 56 6 39 33 56 13 76 5 91 11 46 24 Regions Visited 24 Branch Regions 1 Pre-discovered Areas . | . . . . . . . . . . . . . . . . . . . . . . . . . Known Exits Taken 10 | . . . . 1 . 1 . 1 . 1 . 1 . 1 . 1 . 1 . 1 . 1 . . Unknown Exits Taken 4 | 1 1 1 1 . . . . . . . . . . . . . . . . . . . . . Scrap Searched 1 | . . 1 . . . . . . . . . . . . . . . . . . . . . . Spaces Dug 9 | . . . . . . . . 2 . . 2 . . . . 3 . . . 1 . . . 1 Terrain Destroyed 310 | . . . 15 . 44 16 5 93 13 . 36 . 13 19 10 22 1 8 1 1 2 . . 11 Melee 4 | . . . . . . . . 2 . . . . . . . . . . . 1 . . . 1 Projectile 36 | . . . . . . . . . . . . . . 5 5 10 1 2 1 . 2 . . 10 AOE 270 | . . . 15 . 44 16 5 91 13 . 36 . 13 14 5 12 . 6 . . . . . . Terrain Rammed . | . . . . . . . . . . . . . . . . . . . . . . . . . Walls Destroyed . | . . . . . . . . . . . . . . . . . . . . . . . . . Machines Disabled . | . . . . . . . . . . . . . . . . . . . . . . . . . Actions | -11 -10 -10 -9 -8 -8 -7 -7 -7 -7 -6 -6 -5 -5 -4 -4 -3 -3 -3 -3 -2 -2 -2 -2 -1 --------- Run | Scr Mat Min Mat Mat Gar Fac Gar Fac Gar Fac Gar Fac Gar Fac Gar Res Gar Res Gar Res Gar Res Gar Acc Total 9896 | 52 279 407 606 353 403 597 355 493 663 42 219 36 545 219 243 946 510 344 619 79 889 178 292 527 Wait 393 | . 9 97 44 14 4 46 3 21 29 . 3 . 10 2 17 2 22 8 40 1 6 4 7 4 Move 7437 | 40 240 274 378 217 340 443 320 400 487 33 151 33 397 137 167 738 357 269 436 68 694 159 228 431 Hop . | . . . . . . . . . . . . . . . . . . . . . . . . . Pick Up 255 | 4 8 6 26 17 11 15 2 10 11 2 5 1 25 9 10 36 12 6 12 2 17 1 6 1 Fast Attach 75 | 6 1 . 5 2 . 2 1 3 1 1 1 . 1 3 . 12 3 6 7 . 7 4 2 7 Attach 108 | . . 1 15 7 1 4 2 1 4 1 1 2 15 3 10 10 14 2 3 2 5 . 1 4 Detach 3 | . . . . . . . . . . . . . 1 . 1 . . 1 . . . . . . Swap 184 | . 2 2 10 7 8 19 3 13 15 . 8 . 9 11 1 18 17 11 15 2 7 . 4 2 Drop 273 | . 2 2 22 10 11 28 4 16 14 1 9 . 25 15 9 35 5 11 14 2 21 7 8 2 Fire 852 | 2 14 24 102 75 27 39 15 24 30 4 35 . 50 38 23 78 49 28 37 . 62 1 22 73 Melee 49 | . . . . . . . . 3 . . . . . . . 4 16 . . 2 17 1 5 1 Ram . | . . . . . . . . . . . . . . . . . . . . . . . . . Kick 1 | . . . . . . . . . . . . . . . . . . 1 . . . . . . Crush 28 | . 3 1 4 4 1 1 . 2 . . . . . 1 . 8 . 1 . . . 1 . 1 Escape Stasis 155 | . . . . . . . 5 . 14 . 6 . 12 . 5 4 12 . 55 . 33 . 9 . Rewire 83 | . . . . . . . . . 58 . . . . . . 1 3 . . . 20 . . 1 Trap . | . . . . . . . . . . . . . . . . . . . . . . . . . Miscellaneous . | . . . . . . . . . . . . . . . . . . . . . . . . . Route ------- -11/Scrapyard -10/Materials -10/Mines -9/Materials -8/Materials (discovered 2 exits: *Fac / Gar) -8/Garrison -7/Factory (discovered 3 exits: *Fac / [*Low] / Gar) -7/Garrison -7/Factory -7/Garrison (discovered 2 exits: *Fac x2) -6/Factory -6/Garrison -5/Factory -5/Garrison (discovered 3 exits: *Fac x3) -4/Factory -4/Garrison -3/Research -3/Garrison -3/Research -3/Garrison (discovered 2 exits: *Res x2) -2/Research (discovered 2 exits: *Acc / Gar) -2/Garrison (discovered 3 exits: *Res x3) -2/Research -2/Garrison -1/Access (discovered 1 exit: Com) History --------- Turn | Location | Event 10 | -11/Scrapyard | Discovered new exit (range 13) 78 | -11/Scrapyard | Entered Materials 312 | -10/Materials | Build established: Mutant 358 | -10/Materials | Discovered new exit (range 7) 542 | -10/Materials | Entered Mines 574 | -10/Mines | Met a Derelict bent on vengeance 1063 | -10/Mines | Core integrity fell below 50% 1187 | -10/Mines | Discovered new exit (range 12) 1213 | -10/Mines | Entered Materials 1213 | -9/Materials | Evolved 2 slots: Utility x2 1323 | -9/Materials | Destroyed 7 combat bots 1458 | -9/Materials | Lost 3 parts (1n2w) 1626 | -9/Materials | Build established: Scavenger-Mutant 1627 | -9/Materials | Core integrity fell below 50% 1883 | -9/Materials | Repaired Lgt. Treads 2100 | -9/Materials | Discovered new exit (range 9) 2366 | -9/Materials | Entered another Materials area 2366 | -8/Materials | Evolved 2 slots: Propulsion x1, Utility x1 2747 | -8/Materials | Garrison activated, responded to threat 2890 | -8/Materials | Lost 3 parts (2p1n) 2916 | -8/Materials | Build established: Hauler-Mutant 2918 | -8/Materials | Destroyed 7 combat bots 2979 | -8/Materials | Discovered new exit (range 10) 3010 | -8/Materials | Identified exit to Garrison 3010 | -8/Materials | Entered Garrison 3092 | -8/Garrison | Triggered checkpoint 3154 | -8/Garrison | Triggered checkpoint 3242 | -8/Garrison | Triggered checkpoint 3335 | -8/Garrison | Discovered new exit (range 9) 3365 | -8/Garrison | Installed Relay Interface Framework 3521 | -8/Garrison | Garrison Relay disabled 3713 | -8/Garrison | Entered Factory 3713 | -7/Factory | Evolved 2 slots: Utility x2 3954 | -7/Factory | Fabricated Hcp. Storage Unit (x1) 3999 | -7/Factory | Build established: Scavenger-Mutant 4030 | -7/Factory | Fabricated Hcp. Storage Unit (x1) 4227 | -7/Factory | Discovered new exit (range 10) 4664 | -7/Factory | Discovered new exit (range 4) 4708 | -7/Factory | Identified exit to Garrison 4708 | -7/Factory | Entered Garrison 4718 | -7/Garrison | Expanded RIF knowledge: Program Shield 4822 | -7/Garrison | Triggered checkpoint 4839 | -7/Garrison | Triggered checkpoint 4874 | -7/Garrison | Destroyed 8 combat bots 4979 | -7/Garrison | Discovered new exit (range 8) 5154 | -7/Garrison | Triggered checkpoint 5197 | -7/Garrison | Garrison Relay disabled 5406 | -7/Garrison | Entered Factory 5804 | -7/Factory | Build established: Hauler-Mutant 5859 | -7/Factory | Fabricated Hcp. Storage Unit (x1) 5919 | -7/Factory | Fabricated Hcp. Storage Unit (x1) 6250 | -7/Factory | Garrison activated, responded to threat 6348 | -7/Factory | Identified exit to Garrison 6348 | -7/Factory | Entered Garrison 6448 | -7/Garrison | Triggered checkpoint 6470 | -7/Garrison | Triggered checkpoint 6486 | -7/Garrison | Triggered checkpoint 6516 | -7/Garrison | Destroyed 9 combat bots 6738 | -7/Garrison | Discovered new exit (range 13) 6904 | -7/Garrison | Triggered checkpoint 6966 | -7/Garrison | Garrison Relay disabled 7443 | -7/Garrison | Triggered checkpoint 7470 | -7/Garrison | Triggered checkpoint 7480 | -7/Garrison | Discovered new exit (range 12) 7530 | -7/Garrison | Expanded RIF knowledge: Hotswap 7540 | -7/Garrison | Entered Factory 7540 | -6/Factory | Accompanied by 3 allies 7540 | -6/Factory | Evolved 2 slots: Power x1, Utility x1 7622 | -6/Factory | Identified exit to Garrison 7622 | -6/Factory | Entered Garrison 7658 | -6/Garrison | Spotted B-75 Beast 7734 | -6/Garrison | Destroyed B-75 Beast 7772 | -6/Garrison | Triggered checkpoint 7810 | -6/Garrison | Triggered checkpoint 7826 | -6/Garrison | Destroyed 13 combat bots 7844 | -6/Garrison | Triggered checkpoint 7949 | -6/Garrison | Triggered checkpoint 7972 | -6/Garrison | Discovered new exit (range 14) 8025 | -6/Garrison | Expanded RIF knowledge: Signal Jamming 8034 | -6/Garrison | Entered Factory 8034 | -5/Factory | Evolved 2 slots: Utility x2 8097 | -5/Factory | Identified exit to Garrison 8097 | -5/Factory | Entered Garrison 8146 | -5/Garrison | Spotted B-75 Beast 8200 | -5/Garrison | Destroyed B-75 Beast 8274 | -5/Garrison | Triggered checkpoint 8343 | -5/Garrison | Lost 4 parts (1p1n1u1w) 8360 | -5/Garrison | Build established: Scavenger-Mutant 8419 | -5/Garrison | Discovered new exit (range 12) 8783 | -5/Garrison | Discovered new exit (range 12) 8901 | -5/Garrison | Triggered checkpoint 9002 | -5/Garrison | Triggered checkpoint 9044 | -5/Garrison | Discovered new exit (range 10) 9072 | -5/Garrison | Expanded RIF knowledge: Watcher Feeds 9080 | -5/Garrison | Entered Factory 9080 | -4/Factory | Evolved 2 slots: Utility x2 9153 | -4/Factory | Found Prototype Slashing Weapon 9154 | -4/Factory | Identified Vibroblade 9158 | -4/Factory | Found Vibroblade 9507 | -4/Factory | Identified exit to Garrison 9507 | -4/Factory | Entered Garrison 9517 | -4/Garrison | Expanded RIF knowledge: Autooverride 9574 | -4/Garrison | Triggered checkpoint 9622 | -4/Garrison | Garrison Relay disabled 9711 | -4/Garrison | Spotted B-86 Titan 9717 | -4/Garrison | Triggered checkpoint 9786 | -4/Garrison | Destroyed B-86 Titan 9817 | -4/Garrison | Lost 7 parts (2n3u2w) 9917 | -4/Garrison | Discovered new exit (range 12) 9944 | -4/Garrison | Entered Research 9944 | -3/Research | Evolved 2 slots: Propulsion x1, Utility x1 10030 | -3/Research | Build established: Hauler-Mutant 10157 | -3/Research | System corruption reached 10% 10240 | -3/Research | Found Gamma Bomb Array 10243 | -3/Research | Found Gamma Bomb Array 10610 | -3/Research | Build established: Botlord-Mutant 10694 | -3/Research | First assault squad dispatched 11513 | -3/Research | Identified exit to Garrison 11513 | -3/Research | Entered Garrison 11712 | -3/Garrison | Destroyed 7 combat bots 11714 | -3/Garrison | Lost 8 parts (1p3n2u2w) 11851 | -3/Garrison | Garrison Relay disabled 11954 | -3/Garrison | Triggered checkpoint 12063 | -3/Garrison | Discovered new exit (range 13) 12094 | -3/Garrison | Expanded RIF knowledge: Structural Interface 12150 | -3/Garrison | Triggered checkpoint 12183 | -3/Garrison | Garrison Relay disabled 12222 | -3/Garrison | Triggered checkpoint 12308 | -3/Garrison | Entered Research 12308 | -3/Research | Accompanied by 2 allies 12382 | -3/Research | System corruption reached 30% 12384 | -3/Research | Core integrity fell below 50% 12558 | -3/Research | First assault squad dispatched 12861 | -3/Research | Identified exit to Garrison 12861 | -3/Research | Entered Garrison 12961 | -3/Garrison | Spotted B-86 Titan 12970 | -3/Garrison | Triggered checkpoint 12979 | -3/Garrison | Triggered checkpoint 12988 | -3/Garrison | Assimilated Titan 8a with formatsys_high 13009 | -3/Garrison | Triggered checkpoint 13035 | -3/Garrison | Lost 6 parts (3n2u1w) 13054 | -3/Garrison | Triggered checkpoint 13097 | -3/Garrison | Garrison Relay disabled 13246 | -3/Garrison | Discovered new exit (range 5) 13264 | -3/Garrison | Triggered checkpoint 13336 | -3/Garrison | Garrison Relay disabled 13514 | -3/Garrison | Discovered new exit (range 10) 13536 | -3/Garrison | Expanded RIF knowledge: Autooverride 13574 | -3/Garrison | Triggered checkpoint 13629 | -3/Garrison | Garrison Relay disabled 13746 | -3/Garrison | Entered Research 13746 | -2/Research | Accompanied by 1 ally 13746 | -2/Research | Evolved 2 slots: Utility x2 13813 | -2/Research | Found Antimissile System 13841 | -2/Research | Identified exit to Garrison 13855 | -2/Research | Discovered new exit (range 38) 13862 | -2/Research | Entered Garrison 13894 | -2/Garrison | Triggered checkpoint 13929 | -2/Garrison | Garrison Relay disabled 13983 | -2/Garrison | Spotted B-90 Cyclops 13991 | -2/Garrison | Assimilated Cyclops 9a with formatsys_high 13992 | -2/Garrison | Triggered checkpoint 14020 | -2/Garrison | Triggered checkpoint 14054 | -2/Garrison | Triggered checkpoint 14100 | -2/Garrison | Triggered checkpoint 14211 | -2/Garrison | Discovered new exit (range 5) 14230 | -2/Garrison | Triggered checkpoint 14249 | -2/Garrison | Garrison Relay disabled 14480 | -2/Garrison | Triggered checkpoint 14507 | -2/Garrison | Discovered new exit (range 14) 14740 | -2/Garrison | Garrison Relay disabled 14770 | -2/Garrison | Triggered checkpoint 14798 | -2/Garrison | Triggered checkpoint 14826 | -2/Garrison | Triggered checkpoint 15118 | -2/Garrison | Triggered checkpoint 15171 | -2/Garrison | Garrison Relay disabled 15228 | -2/Garrison | Discovered new exit (range 14) 15261 | -2/Garrison | Expanded RIF knowledge: Autooverride 15268 | -2/Garrison | Entered Research 15268 | -2/Research | Accompanied by 13 allies 15537 | -2/Research | Garrison activated, responded to threat 15541 | -2/Research | Spotted B-90 Cyclops 15545 | -2/Research | Identified exit to Garrison 15545 | -2/Research | Entered Garrison 15545 | -2/Garrison | Accompanied by 2 allies 15610 | -2/Garrison | Spotted B-90 Cyclops 15618 | -2/Garrison | Triggered checkpoint 15623 | -2/Garrison | Triggered checkpoint 15628 | -2/Garrison | Triggered checkpoint 15629 | -2/Garrison | Triggered checkpoint 15639 | -2/Garrison | Destroyed B-90 Cyclops 15776 | -2/Garrison | Discovered new exit (range 8) 15797 | -2/Garrison | Expanded RIF knowledge: Coupler Efficiency 15866 | -2/Garrison | Triggered checkpoint 15896 | -2/Garrison | Garrison Relay disabled 16011 | -2/Garrison | Entered Access 16011 | -1/Access | Accompanied by 2 allies 16011 | -1/Access | Evolved 2 slots: Utility x2 16733 | -1/Access | Identified exit to Command 16784 | -1/Access | System corruption reached 10% 16816 | -1/Access | Lost 4 parts (1p1u2w) 16928 | -1/Access | Self-destructed Last Messages --------------- 16844_ System corrupted: Nova Cannon targeting data glitched. 16844_ Adv. Heat Sink melted. 16844_ G-73 Enforcer destroyed. 16847_ >> Watcher Feeds: Feed link from W-44 Eye lost. 16848_ U-05 Engineer builds a Wall. 16851_ Dropped Nova Cannon. 16852_ System corrupted: Energy discharge (-153). 16852_ Acquired 81 matter. 16854_ Acquired 70 matter. 16865_ >> Watcher Feeds: Established visual feed link with W-44 Eye. 16868_ >> Watcher Feeds: Feed link from W-44 Eye lost. 16868_ >> Watcher Feeds: Established visual feed link with W-44 Eye. 16869_ >> Watcher Feeds: Feed link from W-44 Eye lost. 16880_ RIF automatically rewrites G-73 Enforcer IFF filter. 16891_ System corrupted: Heat flow error (+260). 16907_ U-05 Engineer builds a Wall. 16922_ RIF automatically rewrites S-43 Plague IFF filter. 16924_ U-05 Engineer lays Concrete. 16925_ Relay Coupler [Sentry] destroyed. 16926_ Arm. Heavy Treads destroyed. Map ----- +----------------------------------------------------+ | #"" " = + #????????????????????# "" ! | | ?#"T ## #????????????????????# | | ?#"" ## #????????????????????# | | ??#"" " ## #????????????????????# | | ??#"" """ ## #????????????????????#####/### | | ???#"" """ ## #######+##???????????????# #?? | | ???#" " ## ################# #?? | | ????+ + # + #?? | | ????# # + #########?? | | ########+######## # ! "#?????????? | | ## ""#?????????? | | ## ""#?????????? | | ###############+### ## ""#?????????? | | ????????# # ## ""#?????????? | | ????????# ]# ## T"#?????????? | | ????????# " # |## ""#?????????? | | ????????# """ # %[## ""#?????????? | | ????????# """# !=[!## ""#?????????? | | ????????# = " # [!%*%/ ""#?????????? | | ????????# ########*=## "#?????????? | | ####????# #????###*%## ! #?????????? | | #????#########+#???##*#!!## #?????????? | | ######?####### ##??# %#==#%= #?????????? | | # *#######!! #######! ######+#####?????????? | | ! + *%%!p=% % u ! * [ ??????? | | # [![%=%*|]=R %@ ??????? | | # ####### ####### #####+##+####????????? | | ## ##?????############ # ???????????????? | | !## #???????# # # ???????????????? | | ##### #???????# + # ???????????????? | | ????# #???????# # # ""??????????????? | | ????# ######### # # """ ?????????????? | | ????# # # # # " ????????????? | | ????# # # ! # # ?????????????? | | ????# # # # # ??????????????? | | ????# # # # #?#####??????????????? | | ????# # ########### #????????????????????? | | ????# + #?????????# #????????????????????? | | ????# # #?????????? #????????????????????? | | ????# # #?????????? #????????????????????? | | ????# + #?????????? #????????????????????? | | ????# # #?????????? ?????????????????????? | | ????# # #?????????? ?????????????????????? | | ????# #########?????????? ?????????????????????? | | ????# #?????????????????????????????????????????? | | ????# #?????????????????????????????????????????? | | ???? #?????????????????????????????????????????? | | ???? ??????????????????????????????????????????? | | ????###??????????????????????????????????????????? | | ?????????????????????????????????????????????????? | +----------------------------------------------------+ Best States ------------- Heat Dissipation 111 Energy Generation 45 Energy Capacity 580 Matter Stores 300 Matter Capacity 300 Sight Range 16 Terrain Scan Density 10 Armor Coverage 675 Resistance: KI 30 Power Shielding 66 Utility Shielding 66 Evasion (%) 40 Targeting Accuracy 8 Target Analysis 5 Recoil Reduction 4 Relay Coupler Types 427 Relay Coupler Value 8 Item Schematics ----------------- Hcp. Storage Unit | -10/Materials | Hacked Robot Schematics ------------------ None Fabricated ------------ Hcp. Storage Unit | x1 | -7/Factory Hcp. Storage Unit | x1 | -7/Factory Hcp. Storage Unit | x1 | -7/Factory Hcp. Storage Unit | x1 | -7/Factory Alien Tech Used ----------------- None Achievements -------------- None Challenges ------------ None Game ------ Seed ForceArmageddonBattery Manual? 0 Play Time 01:56:29 Cumulative 609.1 hours Start 2020.09.22 @ 18:51:38 End 2020.09.22 @ 20:51:47 Sessions 1 Manual Loads 0 Difficulty Rogue Special Mode None Game No. 936 Rogue 936 Adventurer 0 Explorer 0 Win Type - Total 57 Types 37/1/7/9/3/0/0/0/0 Lore% 93 Gallery% 94 Achievement% 82 Wizard Run 0 Options --------- ASCII 1 Keyboard 0 Movement Numpad Keybinds 0 Fullscreen 0 Font 14/SmallcapsGlow Map View 76x50 Tactical HUD 1 Map Filters NONE Filters NONE Steam 1 RUN: e7e9d406-e258-40ff-928a-7d1819fa6c97